[Event "Fagernes Open 2019"]
[Site "Fagernes"]
[Date "2019.04.18"]
[Round "6.29"]
[White "Dale, Gunnar Brandshaug"]
[Black "Dahl, Torbjorn"]
[Result "1-0"]
[ECO "B07"]
[WhiteElo "1903"]
[BlackElo "1917"]
[Annotator "NA"]
[PlyCount "125"]
[EventDate "2019.04.14"]
[EventType "swiss"]
[EventCountry "NOR"]
[SourceTitle "playchess.com"]
[Source "ChessBase"]
[SourceQuality "1"]
[TimeControl "40/7200:3600"]

1. e4 {[%emt 0:00:30]} d6 {[%emt 0:00:49]} 2. d4 {[%emt 0:00:19]} Nf6 {[%emt 0:00:06]} 3. Nc3 {[%emt 0:00:15]} Nbd7 {[%emt 0:00:05]} 4. f4 {[%emt 0:00:05]} e5 {[%emt 0:00:14]} 5. Nf3 {[%emt 0:00:23]} exd4 {[%emt 0:00:06]} 6. Qxd4 {[%emt 0:00:07]} c6 {[%emt 0:00:23]} 7. Bd2 {[%emt 0:00:55]} Qb6 {[%emt 0:04:39]} 8. O-O-O {[%emt 0:00:09]} Qxd4 {[%emt 0:03:47]} 9. Nxd4 {[%emt 0:00:20]} Nb6 {[%emt 0:01:17]} 10. g3 {[%emt 0:03:46]} Bg4 {[%emt 0:06:40]} 11. Re1 {[%emt 0:01:24]} O-O-O {[%emt 0:02:29]} 12. h3 {[%emt 0:00:48]} Bd7 {[%emt 0:00:14]} 13. a4 {[%emt 0:01:43]} d5 {[%emt 0:07:46]} 14. e5 {[%emt 0:08:11]} Nh5 {[%emt 0:10:07]} 15. Nde2 {[%emt 0:07:44]} g6 {[%emt 0:03:21]} 16. b3 {[%emt 0:05:04]} Ba3+ {[%emt 0:05:45]} 17. Kd1 {[%emt 0:04:28]} Bb4 {[%emt 0:23:44]} 18. Bg2 {[%emt 0:06:52]} Ng7 {[%emt 0:03:44]} 19. g4 {[%emt 0:14:56]} h5 {[%emt 0:02:30]} 20. Bf3 {[%emt 0:00:32]} Be6 {[%emt 0:04:07]} 21. Nb1 {[%emt 0:05:49]} Bxd2 {[%emt 0:01:48]} 22. Nxd2 {[%emt 0:01:07]} Nd7 {[%emt 0:08:07]} 23. Nd4 {[%emt 0:10:27]} Nc5 {[%emt 0:01:16]} 24. a5 {[%emt 0:02:24]} hxg4 {[%emt 0:03:18]} 25. hxg4 {[%emt 0:00:38]} Rxh1 {[%emt 0:00:11]} 26. Rxh1 {[%emt 0:00:27]} Ne4 {[%emt 0:00:45]} 27. Rh7 {[%emt 0:02:03]} Nc3+ {[%emt 0:08:33]} 28. Ke1 {[%emt 0:01:34]} Rg8 {[%emt 0:01:49]} 29. a6 {[%emt 0:03:25]} Kc7 {[%emt 0:03:09]} 30. axb7 {[%emt 0:00:40]} Kxb7 {[%emt 0:00:05]} 31. f5 {[%emt 0:06:54]} gxf5 {[%emt 0:00:28]} 32. gxf5 {[%emt 0:00:52]} Bc8 {[%emt 0:03:38]} 33. f6 {[%emt 0:00:30]} Nf5 {[%emt 0:00:52]} 34. Rxf7+ {[%emt 0:01:18]} Kb6 {[%emt 0:00:04]} 35. Nxf5 {[%emt 0:00:52]} Bxf5 {[%emt 0:00:02]} 36. Rg7 {[%emt 0:01:56]} Rxg7 {[%emt 0:02:06]} 37. fxg7 {[%emt 0:00:02]} Bh7 {[%emt 0:00:36]} 38. e6 {[%emt 0:00:20]} Kc7 {[%emt 0:00:02]} 39. Bh5 {[%emt 0:00:10]} Kd6 {[%emt 0:00:32]} 40. Bf7 {[%emt 0:00:08]} Nb5 {[%emt 0:00:36]} 41. g8=Q {[%emt 1:00:58]} Bxg8 {[%emt 1:00:01]} 42. Bxg8 {[%emt 0:00:17]} Nc3 {[%emt 0:00:00]} 43. Nf3 {[%emt 0:00:00]} Nb5 {[%emt 0:00:00]} 44. Bf7 {[%emt 0:00:00]} Nc7 {[%emt 0:00:00]} 45. Kd2 {[%emt 0:00:00]} Nxe6 {[%emt 0:00:00]} 46. Bxe6 {[%emt 0:00:00]} Kxe6 {[%emt 0:00:00]} 47. Nd4+ {[%emt 0:00:00]} Kd6 {[%emt 0:00:00]} 48. Kc3 {[%emt 0:00:00]} a6 {[%emt 0:00:00]} 49. Nf5+ {[%emt 0:00:00]} Kc5 {[%emt 0:00:00]} 50. b4+ {[%emt 0:00:00]} Kb5 {[%emt 0:00:00]} 51. Nd4+ {[%emt 0:00:00]} Kb6 {[%emt 0:00:00]} 52. Nb3 {[%emt 0:00:00]} Kb5 {[%emt 0:00:00]} 53. Nd4+ {[%emt 0:00:00]} Kb6 {[%emt 0:00:00]} 54. Kb3 {[%emt 0:00:00]} c5 {[%emt 0:00:00]} 55. Ne6 {[%emt 0:00:00]} cxb4 {[%emt 0:00:00]} 56. Kxb4 {[%emt 0:00:00]} Kc6 {[%emt 0:00:00]} 57. Nd4+ {[%emt 0:00:00]} Kb6 {[%emt 0:00:00]} 58. Nb3 {[%emt 0:00:00]} Kc6 {[%emt 0:00:00]} 59. Ka5 {[%emt 0:00:00]} Kb7 {[%emt 0:00:00]} 60. Nc5+ {[%emt 0:00:00]} Kc6 {[%emt 0:00:00]} 61. Nxa6 {[%emt 0:00:00]} d4 {[%emt 0:00:00]} 62. Kb4 {[%emt 0:00:00]} Kd5 {[%emt 0:00:00]} 63. Nc5 {[%emt 0:00:00]} 1-0

[Event "Fagernes Open 2019"]
[Site "Fagernes"]
[Date "2019.04.18"]
[Round "6.30"]
[White "Lobersli, Henrik Oie"]
[Black "Wright, Haakon"]
[Result "1/2-1/2"]
[ECO "B35"]
[WhiteElo "2102"]
[BlackElo "1849"]
[Annotator "NA"]
[PlyCount "82"]
[EventDate "2019.04.14"]
[EventType "swiss"]
[EventCountry "NOR"]
[SourceTitle "playchess.com"]
[Source "ChessBase"]
[SourceQuality "1"]
[TimeControl "40/7200:3600"]

1. e4 {[%emt 0:00:05]} c5 {[%emt 0:00:03]} 2. Nf3 {[%emt 0:00:15]} g6 {[%emt 0:00:04]} 3. d4 {[%emt 0:00:18]} cxd4 {[%emt 0:00:02]} 4. Nxd4 {[%emt 0:00:40]} Nc6 {[%emt 0:00:01]} 5. Nc3 {[%emt 0:00:26]} Bg7 {[%emt 0:00:07]} 6. Be3 {[%emt 0:00:23]} Nf6 {[%emt 0:00:02]} 7. Bc4 {[%emt 0:00:37]} O-O {[%emt 0:00:05]} 8. Bb3 {[%emt 0:00:35]} Ng4 {[%emt 0:01:40]} 9. Qxg4 {[%emt 0:01:30]} Nxd4 {[%emt 0:00:16]} 10. Qd1 {[%emt 0:00:45]} Nxb3 {[%emt 0:02:47]} 11. axb3 {[%emt 0:00:23]} a6 {[%emt 0:03:30]} 12. Nd5 {[%emt 0:02:25]} d6 {[%emt 0:07:30]} 13. Bb6 {[%emt 0:01:08]} Qd7 {[%emt 0:00:33]} 14. Bd4 {[%emt 0:00:27]} Bxd4 {[%emt 0:08:30]} 15. Qxd4 {[%emt 0:00:08]} Qd8 {[%emt 0:01:20]} 16. h4 {[%emt 0:08:29]} e5 {[%emt 0:09:14]} 17. Qd2 {[%emt 0:04:28]} Be6 {[%emt 0:05:14]} 18. O-O-O {[%emt 0:17:03]} Bxd5 {[%emt 0:08:27]} 19. Qxd5 {[%emt 0:01:20]} Qb6 {[%emt 0:04:14]} 20. f3 {[%emt 0:15:35]} Rfd8 {[%emt 0:05:11]} 21. h5 {[%emt 0:01:29]} g5 {[%emt 0:03:15]} 22. h6 {[%emt 0:11:11]} Qe3+ {[%emt 0:06:04]} 23. Kb1 {[%emt 0:01:27]} b5 {[%emt 0:03:03]} 24. g3 {[%emt 0:11:54]} Rac8 {[%emt 0:13:55]} 25. Rde1 {[%emt 0:04:19]} Qf2 {[%emt 0:02:22]} 26. Qd3 {[%emt 0:03:12]} Qxg3 {[%emt 0:02:30]} 27. Reg1 {[%emt 0:01:04]} Qf4 {[%emt 0:01:05]} 28. Rh5 {[%emt 0:01:00]} Kh8 {[%emt 0:03:25]} 29. Rgxg5 {[%emt 0:08:51]} Qf6 {[%emt 0:03:26]} 30. Rf5 {[%emt 0:03:52]} Qe6 {[%emt 0:02:00]} 31. f4 {[%emt 0:02:53]} f6 {[%emt 0:03:46]} 32. Qh3 {[%emt 0:01:44]} Rg8 {[%emt 0:00:00]} 33. Qh4 {[%emt 0:00:00]} Rg1+ {[%emt 0:00:00]} 34. Ka2 {[%emt 0:00:00]} Rg6 {[%emt 0:00:00]} 35. fxe5 {[%emt 0:00:00]} dxe5 {[%emt 0:00:00]} 36. Rf2 {[%emt 0:00:00]} Qb6 {[%emt 0:00:00]} 37. Rhf5 {[%emt 0:00:00]} Qa5+ {[%emt 0:00:00]} 38. Kb1 {[%emt 0:00:00]} Qe1+ {[%emt 0:00:00]} 39. Ka2 {[%emt 0:00:00]} Qa5+ {[%emt 0:00:00]} 40. Kb1 {[%emt 0:00:00]} Qe1+ {[%emt 0:00:00]} 41. Ka2 {[%emt 1:00:00]} Qa5+ {[%emt 1:00:00]} 1/2-1/2

[Event "Fagernes Open 2019"]
[Site "Fagernes"]
[Date "2019.04.19"]
[Round "7.27"]
[White "Lundberg, Alf W."]
[Black "Loberg, Jo Kristian"]
[Result "0-1"]
[ECO "B31"]
[WhiteElo "1932"]
[BlackElo "2045"]
[Annotator "NA"]
[PlyCount "144"]
[EventDate "2019.04.14"]
[EventType "swiss"]
[EventCountry "NOR"]
[SourceTitle "playchess.com"]
[Source "ChessBase"]
[SourceQuality "1"]
[TimeControl "40/7200:3600"]

1. e4 {[%emt 0:00:01]} c5 {[%emt 0:00:11]} 2. Qf3 {[%emt 0:00:02]} Nc6 {[%emt 0:00:14]} 3. Qg3 {[%emt 0:00:04]} g6 {[%emt 0:00:28]} 4. Be2 {[%emt 0:00:14]} Bg7 {[%emt 0:02:35]} 5. d3 {[%emt 0:02:33]} Nf6 {[%emt 0:05:57]} 6. f4 {[%emt 0:00:36]} d6 {[%emt 0:11:26]} 7. Na3 {[%emt 0:01:28]} Rb8 {[%emt 0:02:34]} 8. Nc4 {[%emt 0:02:36]} d5 {[%emt 0:06:02]} 9. exd5 {[%emt 0:03:37]} Nxd5 {[%emt 0:00:27]} 10. Ne5 {[%emt 0:02:27]} Nd4 {[%emt 0:04:28]} 11. Bd1 {[%emt 0:01:00]} Nb4 {[%emt 0:03:47]} 12. Qf2 {[%emt 0:01:14]} Qd5 {[%emt 0:27:29]} 13. Ngf3 {[%emt 1:44:08]} O-O 14. O-O {[%emt 0:00:00]} Nbc6 {[%emt 0:54:22]} 15. c3 {[%emt 0:00:00]} Ne6 {[%emt 0:00:00]} 16. Bb3 {[%emt 0:00:00]} Qd6 {[%emt 0:00:00]} 17. Nxc6 {[%emt 0:00:00]} Qxc6 {[%emt 0:00:00]} 18. Be3 {[%emt 0:00:00]} b6 {[%emt 0:00:00]} 19. Rad1 {[%emt 0:00:00]} Bb7 {[%emt 0:00:00]} 20. Qh4 {[%emt 0:00:00]} Rfe8 {[%emt 0:00:00]} 21. Qg3 {[%emt 0:00:00]} Nf8 {[%emt 0:00:00]} 22. Ne5 {[%emt 0:00:00]} Bxe5 {[%emt 0:00:00]} 23. fxe5 {[%emt 0:00:00]} Ne6 {[%emt 0:00:00]} 24. d4 {[%emt 0:00:00]} Nd8 {[%emt 0:00:00]} 25. d5 {[%emt 0:00:00]} Qc7 {[%emt 0:00:00]} 26. Bf4 {[%emt 0:00:00]} e6 {[%emt 0:00:00]} 27. Ba4 {[%emt 0:00:00]} b5 {[%emt 0:00:00]} 28. Bxb5 {[%emt 0:00:00]} Rf8 {[%emt 0:00:00]} 29. d6 {[%emt 0:00:00]} Qb6 {[%emt 0:00:00]} 30. c4 {[%emt 0:00:00]} a6 {[%emt 0:00:00]} 31. Ba4 {[%emt 0:00:00]} Qxb2 {[%emt 0:00:00]} 32. Bb3 {[%emt 0:00:00]} Nc6 {[%emt 0:00:00]} 33. Rd2 {[%emt 0:00:00]} Qa3 {[%emt 0:00:00]} 34. Bh6 {[%emt 0:00:00]} f5 {[%emt 0:00:00]} 35. exf6 {[%emt 0:00:00]} Rf7 {[%emt 0:00:00]} 36. d7 {[%emt 0:00:00]} Rd8 {[%emt 0:00:00]} 37. Qc7 {[%emt 0:00:00]} Ba8 {[%emt 0:00:00]} 38. Rd6 {[%emt 0:00:00]} Qb2 {[%emt 0:00:00]} 39. Rxc6 {[%emt 0:00:00]} Qd4+ {[%emt 0:00:00]} 40. Kh1 {[%emt 0:00:00]} Rdxd7 {[%emt 0:00:00]} 41. Qb8+ {[%emt 0:48:13]} Rd8 {[%emt 0:58:26]} 42. Rc8 {[%emt 0:10:42]} Bxg2+ {[%emt 0:00:30]} 43. Kxg2 {[%emt 0:00:08]} Qg4+ {[%emt 0:00:26]} 44. Qg3 {[%emt 0:00:00]} Qe4+ {[%emt 0:00:00]} 45. Qf3 {[%emt 0:00:00]} Qxf3+ {[%emt 0:00:00]} 46. Rxf3 {[%emt 0:00:00]} Rxc8 {[%emt 0:00:00]} 47. Kg3 {[%emt 0:00:00]} Rd7 {[%emt 0:00:00]} 48. Ba4 {[%emt 0:00:00]} Rb7 {[%emt 0:00:00]} 49. Kf4 {[%emt 0:00:00]} Kf7 {[%emt 0:00:00]} 50. Ke5 {[%emt 0:00:00]} Rd8 {[%emt 0:00:00]} 51. Be3 {[%emt 0:00:00]} Rb2 {[%emt 0:00:00]} 52. Rh3 {[%emt 0:00:00]} h5 {[%emt 0:00:00]} 53. Bxc5 {[%emt 0:00:00]} Rxa2 {[%emt 0:00:00]} 54. Be7 {[%emt 0:00:00]} Re2+ {[%emt 0:00:00]} 55. Kf4 {[%emt 0:00:00]} Rd4+ {[%emt 0:00:00]} 56. Kf3 {[%emt 0:00:00]} Ra2 {[%emt 0:00:00]} 57. Bb3 {[%emt 0:00:00]} Rb2 {[%emt 0:00:00]} 58. Ke3 {[%emt 0:00:00]} Rxb3+ {[%emt 0:00:00]} 59. Kxd4 {[%emt 0:00:00]} Rxh3 {[%emt 0:00:00]} 60. c5 {[%emt 0:00:00]} Rxh2 {[%emt 0:00:00]} 61. c6 {[%emt 0:00:00]} Rc2 {[%emt 0:00:00]} 62. Bc5 {[%emt 0:00:00]} Rd2+ {[%emt 0:00:00]} 63. Kc4 {[%emt 0:00:00]} Rd8 {[%emt 0:00:00]} 64. Be7 {[%emt 0:00:00]} Rc8 {[%emt 0:00:00]} 65. Kc5 {[%emt 0:00:00]} h4 {[%emt 0:00:00]} 66. Kb6 {[%emt 0:00:00]} h3 {[%emt 0:00:00]} 67. Bd6 {[%emt 0:00:00]} Kxf6 {[%emt 0:00:00]} 68. Bh2 {[%emt 0:00:00]} a5 {[%emt 0:00:00]} 69. Kb7 {[%emt 0:00:00]} Rg8 {[%emt 0:00:00]} 70. c7 {[%emt 0:00:00]} a4 {[%emt 0:00:00]} 71. c8=Q {[%emt 0:00:00]} Rxc8 {[%emt 0:00:00]} 72. Kxc8 {[%emt 0:00:00]} a3 {[%emt 0:00:00]} 0-1

[Event "Fagernes Open 2019"]
[Site "Fagernes"]
[Date "2019.04.19"]
[Round "7.28"]
[White "Dale, Gunnar Brandshaug"]
[Black "Rasmussen, Jonas H"]
[Result "1/2-1/2"]
[ECO "C28"]
[WhiteElo "1903"]
[BlackElo "1993"]
[Annotator "NA"]
[PlyCount "168"]
[EventDate "2019.04.14"]
[EventType "swiss"]
[EventCountry "NOR"]
[SourceTitle "playchess.com"]
[Source "ChessBase"]
[SourceQuality "1"]
[TimeControl "40/7200:3600"]

1. e4 {[%emt 0:00:09]} e5 {[%emt 0:00:05]} 2. Nc3 {[%emt 0:00:18]} Nf6 {[%emt 0:00:05]} 3. Bc4 {[%emt 0:00:06]} Nc6 {[%emt 0:00:17]} 4. d3 {[%emt 0:00:11]} Na5 {[%emt 0:01:12]} 5. Qf3 {[%emt 0:00:08]} Nxc4 {[%emt 0:02:33]} 6. dxc4 {[%emt 0:00:08]} d6 {[%emt 0:02:13]} 7. Nge2 {[%emt 0:00:34]} Bg4 {[%emt 0:01:13]} 8. Qd3 {[%emt 0:00:31]} c6 {[%emt 0:05:58]} 9. h3 {[%emt 0:01:19]} Be6 {[%emt 0:00:42]} 10. Be3 {[%emt 0:04:31]} Be7 {[%emt 0:05:33]} 11. Rd1 {[%emt 0:04:12]} Qa5 {[%emt 0:02:57]} 12. O-O {[%emt 0:07:14]} O-O {[%emt 0:00:09]} 13. Bd2 {[%emt 0:07:40]} Qc7 {[%emt 0:02:11]} 14. Bg5 {[%emt 0:06:19]} h6 {[%emt 0:00:55]} 15. Bxf6 {[%emt 0:01:49]} Bxf6 {[%emt 0:00:06]} 16. b3 {[%emt 0:03:33]} Rad8 {[%emt 0:01:41]} 17. a4 {[%emt 0:12:49]} a6 {[%emt 0:10:34]} 18. Ng3 {[%emt 0:05:54]} g6 {[%emt 0:02:50]} 19. Nce2 {[%emt 0:09:29]} d5 {[%emt 0:12:19]} 20. cxd5 {[%emt 0:05:21]} cxd5 {[%emt 0:00:09]} 21. Qf3 {[%emt 0:04:51]} Bg7 {[%emt 0:07:46]} 22. exd5 {[%emt 0:00:26]} Bd7 {[%emt 0:03:09]} 23. c4 {[%emt 0:01:05]} f5 {[%emt 0:01:56]} 24. d6 {[%emt 0:02:33]} Qb6 {[%emt 0:04:28]} 25. Qd5+ {[%emt 0:00:44]} Kh7 {[%emt 0:01:43]} 26. c5 {[%emt 0:01:46]} Qb4 {[%emt 0:01:07]} 27. Nc1 {[%emt 0:02:18]} Bc6 {[%emt 0:01:21]} 28. Nd3 {[%emt 0:01:57]} Bxd5 {[%emt 0:05:47]} 29. Nxb4 {[%emt 0:00:02]} Bxb3 {[%emt 0:00:08]} 30. Ra1 {[%emt 0:04:50]} e4 {[%emt 0:00:19]} 31. Ra3 {[%emt 0:01:00]} Bc4 {[%emt 0:00:12]} 32. Rd1 {[%emt 0:00:58]} a5 {[%emt 0:05:44]} 33. Nd5 {[%emt 0:02:48]} Bb2 {[%emt 0:03:09]} 34. Re3 {[%emt 0:01:07]} Bd3 {[%emt 0:04:24]} 35. Nf4 {[%emt 0:03:11]} Bd4 {[%emt 0:14:10]} 36. Rexd3 {[%emt 0:05:12]} exd3 {[%emt 0:00:28]} 37. Ne6 {[%emt 0:00:49]} Bxc5 {[%emt 0:03:02]} 38. Rxd3 {[%emt 0:02:25]} b6 {[%emt 0:01:33]} 39. Nxf8+ {[%emt 0:03:13]} Rxf8 {[%emt 0:00:06]} 40. Ne2 {[%emt 0:01:05]} Rd8 {[%emt 0:00:04]} 41. d7 {[%emt 1:00:42]} Kg7 {[%emt 1:00:38]} 42. Nf4 {[%emt 0:01:54]} Kf6 {[%emt 0:02:45]} 43. Kf1 {[%emt 0:02:44]} g5 {[%emt 0:01:21]} 44. Nd5+ {[%emt 0:00:00]} Ke5 {[%emt 0:00:00]} 45. Nc7 {[%emt 0:00:00]} Bd4 {[%emt 0:00:00]} 46. Rxd4 {[%emt 0:00:00]} Kxd4 {[%emt 0:00:00]} 47. Ne6+ {[%emt 0:00:00]} Kd5 {[%emt 0:00:00]} 48. Nxd8 {[%emt 0:00:00]} Kd6 {[%emt 0:00:00]} 49. Nc6 {[%emt 0:00:00]} Kxd7 {[%emt 0:00:00]} 50. Nd4 {[%emt 0:00:00]} f4 {[%emt 0:00:00]} 51. Ke2 {[%emt 0:00:00]} Kd6 {[%emt 0:00:00]} 52. Kd3 {[%emt 0:00:00]} Kd5 {[%emt 0:00:00]} 53. Nb3 {[%emt 0:00:00]} f3 {[%emt 0:00:00]} 54. g4 {[%emt 0:00:00]} b5 {[%emt 0:00:00]} 55. axb5 {[%emt 0:00:00]} a4 {[%emt 0:00:00]} 56. Nd4 {[%emt 0:00:00]} a3 {[%emt 0:00:00]} 57. Kc3 {[%emt 0:00:00]} a2 {[%emt 0:00:00]} 58. Kb2 {[%emt 0:00:00]} Kxd4 {[%emt 0:00:00]} 59. b6 {[%emt 0:00:00]} Kd3 {[%emt 0:00:00]} 60. b7 {[%emt 0:00:00]} Ke2 {[%emt 0:00:00]} 61. b8=Q {[%emt 0:00:00]} Kxf2 {[%emt 0:00:00]} 62. Qh2+ {[%emt 0:00:00]} Ke1 {[%emt 0:00:00]} 63. Qe5+ {[%emt 0:00:00]} Kf1 {[%emt 0:00:00]} 64. Qg3 {[%emt 0:00:00]} f2 {[%emt 0:00:00]} 65. Kxa2 {[%emt 0:00:00]} Ke2 {[%emt 0:00:00]} 66. Qg2 {[%emt 0:00:00]} Ke1 {[%emt 0:00:00]} 67. Qe4+ {[%emt 0:00:00]} Kf1 {[%emt 0:00:00]} 68. Qe3 {[%emt 0:00:00]} Kg2 {[%emt 0:00:00]} 69. Qe4+ {[%emt 0:00:00]} Kg1 {[%emt 0:00:00]} 70. Qd4 {[%emt 0:00:00]} Kg2 {[%emt 0:00:00]} 71. Qe4+ {[%emt 0:00:00]} Kg1 {[%emt 0:00:00]} 72. Qd4 {[%emt 0:00:00]} Kg2 {[%emt 0:00:00]} 73. Qd5+ {[%emt 0:00:00]} Kg1 {[%emt 0:00:00]} 74. Qc5 {[%emt 0:00:00]} Kg2 {[%emt 0:00:00]} 75. Qc6+ {[%emt 0:00:00]} Kg1 {[%emt 0:00:00]} 76. Qb6 {[%emt 0:00:00]} Kg2 {[%emt 0:00:00]} 77. Qb2 {[%emt 0:00:00]} Kg1 {[%emt 0:00:00]} 78. Qb6 {[%emt 0:00:00]} Kg2 {[%emt 0:00:00]} 79. Qxh6 {[%emt 0:00:00]} f1=Q {[%emt 0:00:00]} 80. Qxg5 {[%emt 0:00:00]} Qe2+ {[%emt 0:00:00]} 81. Kb3 {[%emt 0:00:00]} Kxh3 {[%emt 0:00:00]} 82. Qh5+ {[%emt 0:00:00]} Kg3 {[%emt 0:00:00]} 83. Kc3 {[%emt 0:00:00]} Qxg4 {[%emt 0:00:00]} 84. Qxg4+ {[%emt 0:00:00]} Kxg4 {[%emt 0:00:00]} 1/2-1/2

[Event "Fagernes Open 2019"]
[Site "Fagernes"]
[Date "2019.04.19"]
[Round "7.29"]
[White "Shehzad, Shazil"]
[Black "Sidali, Elias Hulleberg"]
[Result "0-1"]
[ECO "B31"]
[WhiteElo "2024"]
[BlackElo "1944"]
[Annotator "NA"]
[PlyCount "80"]
[EventDate "2019.04.14"]
[EventType "swiss"]
[EventCountry "NOR"]
[SourceTitle "playchess.com"]
[Source "ChessBase"]
[SourceQuality "1"]
[TimeControl "40/7200:3600"]

1. e4 {[%emt 2:00:00]} c5 {[%emt 0:00:09]} 2. Nf3 {[%emt 0:00:00]} Nc6 {[%emt 0:00:10]} 3. Bb5 {[%emt 0:00:00]} g6 {[%emt 0:00:07]} 4. Bxc6 {[%emt 0:00:00]} bxc6 {[%emt 0:00:04]} 5. O-O {[%emt 0:00:00]} Bg7 {[%emt 0:00:04]} 6. Re1 {[%emt 0:00:00]} Nh6 {[%emt 0:00:04]} 7. c3 {[%emt 0:00:00]} O-O {[%emt 0:00:02]} 8. d4 {[%emt 0:00:00]} cxd4 {[%emt 0:00:06]} 9. cxd4 {[%emt 0:00:00]} d5 {[%emt 0:00:07]} 10. e5 {[%emt 0:00:00]} f6 {[%emt 0:00:03]} 11. e6 {[%emt 0:00:00]} Qd6 {[%emt 0:00:05]} 12. Qe2 {[%emt 0:00:00]} c5 {[%emt 0:00:01]} 13. b3 {[%emt 0:00:00]} cxd4 {[%emt 0:04:50]} 14. Ba3 {[%emt 0:00:00]} Qb6 {[%emt 0:03:24]} 15. Bb2 {[%emt 0:00:00]} f5 {[%emt 0:04:35]} 16. Qd2 {[%emt 0:00:00]} Bxe6 {[%emt 0:02:32]} 17. Bxd4 {[%emt 0:00:00]} Bxd4 {[%emt 0:05:47]} 18. Nxd4 {[%emt 0:00:00]} Bf7 {[%emt 0:00:32]} 19. Rxe7 {[%emt 0:00:00]} Rfe8 {[%emt 0:01:14]} 20. Rxe8+ {[%emt 0:00:00]} Rxe8 {[%emt 0:00:09]} 21. f3 {[%emt 0:00:00]} Re1+ {[%emt 0:04:31]} 22. Kf2 {[%emt 0:00:00]} Rh1 {[%emt 0:00:11]} 23. h3 {[%emt 0:00:00]} f4 {[%emt 0:01:19]} 24. Ke2 {[%emt 0:00:00]} Qa6+ {[%emt 0:00:11]} 25. Qd3 {[%emt 0:00:00]} Re1+ {[%emt 0:00:36]} 26. Kxe1 {[%emt 0:00:00]} Qxd3 {[%emt 0:00:17]} 27. Ne2 {[%emt 0:00:00]} Nf5 {[%emt 0:01:38]} 28. Nbc3 {[%emt 0:00:00]} d4 {[%emt 0:01:40]} 29. Rd1 {[%emt 0:00:00]} Qe3 {[%emt 0:00:10]} 30. Ne4 {[%emt 0:00:00]} d3 {[%emt 0:00:15]} 31. N4c3 {[%emt 0:00:00]} dxe2 {[%emt 0:00:10]} 32. Nxe2 {[%emt 0:00:00]} Ng3 {[%emt 0:00:44]} 33. Rd2 {[%emt 0:00:00]} Be8 {[%emt 0:01:57]} 34. Kd1 {[%emt 0:00:00]} Bb5 {[%emt 0:00:16]} 35. Nxg3 {[%emt 0:00:00]} fxg3 {[%emt 0:00:10]} 36. Kc2 {[%emt 0:00:00]} Qg1 {[%emt 0:00:13]} 37. a4 {[%emt 0:00:00]} Bf1 {[%emt 0:00:06]} 38. b4 {[%emt 0:00:00]} Bxg2 {[%emt 0:00:07]} 39. a5 {[%emt 0:00:00]} Bxf3 {[%emt 0:00:07]} 40. b5 {[%emt 0:00:00]} Qc5+ {[%emt 0:00:11]} 0-1

[Event "Fagernes Open 2019"]
[Site "Fagernes"]
[Date "2019.04.19"]
[Round "7.30"]
[White "Wright, Haakon"]
[Black "Flatebo, Hallvard Haug"]
[Result "1-0"]
[ECO "A86"]
[WhiteElo "1849"]
[BlackElo "1801"]
[Annotator "NA"]
[PlyCount "99"]
[EventDate "2019.04.14"]
[EventType "swiss"]
[EventCountry "NOR"]
[SourceTitle "playchess.com"]
[Source "ChessBase"]
[SourceQuality "1"]
[TimeControl "40/7200:3600"]

1. c4 {[%emt 0:00:10]} d6 {[%emt 0:00:10]} 2. g3 {[%emt 0:00:06]} f5 {[%emt 0:00:06]} 3. d4 {[%emt 0:00:14]} Nf6 {[%emt 0:00:08]} 4. Bg2 {[%emt 0:00:08]} g6 {[%emt 0:00:11]} 5. Nc3 {[%emt 0:00:08]} Bg7 {[%emt 0:00:06]} 6. Nh3 {[%emt 0:00:05]} O-O {[%emt 0:02:33]} 7. d5 {[%emt 0:00:14]} a5 {[%emt 0:05:30]} 8. Nf4 {[%emt 0:00:29]} Na6 {[%emt 0:03:41]} 9. h4 {[%emt 0:08:36]} Qe8 {[%emt 0:04:47]} 10. h5 {[%emt 0:08:20]} gxh5 {[%emt 0:06:05]} 11. e3 {[%emt 0:08:02]} Bd7 {[%emt 0:07:03]} 12. Bf3 {[%emt 0:05:51]} Nc5 {[%emt 0:02:42]} 13. Nxh5 {[%emt 0:07:45]} Nxh5 {[%emt 0:01:37]} 14. Bxh5 {[%emt 0:00:39]} Qc8 {[%emt 0:01:33]} 15. Qe2 {[%emt 0:12:53]} e5 {[%emt 0:05:46]} 16. e4 {[%emt 0:06:08]} fxe4 {[%emt 0:03:24]} 17. Nxe4 {[%emt 0:00:29]} Nxe4 {[%emt 0:00:44]} 18. Qxe4 {[%emt 0:00:04]} Bf5 {[%emt 0:01:05]} 19. Qh4 {[%emt 0:02:15]} Qd8 {[%emt 0:02:36]} 20. Qxd8 {[%emt 0:06:41]} Raxd8 {[%emt 0:01:15]} 21. Bg5 {[%emt 0:01:34]} Bf6 {[%emt 0:01:06]} 22. Bh6 {[%emt 0:01:09]} Bg7 {[%emt 0:00:13]} 23. Bg5 {[%emt 0:03:29]} Bf6 {[%emt 0:00:06]} 24. Bh6 {[%emt 0:00:00]} Bg7 {[%emt 0:00:08]} 25. Bd2 {[%emt 0:00:04]} b6 {[%emt 0:00:40]} 26. O-O-O {[%emt 0:01:10]} a4 {[%emt 0:04:48]} 27. Be3 {[%emt 0:02:56]} Be4 {[%emt 0:04:48]} 28. Rh4 {[%emt 0:02:03]} Bf5 {[%emt 0:02:20]} 29. g4 {[%emt 0:03:11]} Bf6 {[%emt 0:01:33]} 30. g5 {[%emt 0:01:00]} Be7 {[%emt 0:02:16]} 31. Rh2 {[%emt 0:00:21]} Be4 {[%emt 0:01:21]} 32. Rg1 {[%emt 0:00:48]} Kg7 {[%emt 0:02:05]} 33. Rh3 {[%emt 0:12:30]} Rg8 {[%emt 0:05:52]} 34. Rhg3 {[%emt 0:01:12]} Bf5 {[%emt 0:01:41]} 35. g6 {[%emt 0:01:03]} hxg6 {[%emt 0:00:25]} 36. Bxg6 {[%emt 0:00:26]} Bxg6 {[%emt 0:00:02]} 37. Rxg6+ {[%emt 0:00:13]} Kf7 {[%emt 0:00:09]} 38. Rxg8 {[%emt 0:03:01]} Rxg8 {[%emt 0:00:01]} 39. Rxg8 {[%emt 0:00:09]} Kxg8 {[%emt 0:00:03]} 40. Kc2 {[%emt 0:03:30]} Kf7 {[%emt 0:01:33]} 41. Kc3 {[%emt 1:01:15]} e4 {[%emt 1:00:57]} 42. Kd4 {[%emt 0:07:23]} Bf6+ {[%emt 0:00:09]} 43. Kxe4 {[%emt 0:00:14]} Bxb2 {[%emt 0:00:27]} 44. Kf5 {[%emt 0:00:41]} Ke7 {[%emt 0:01:42]} 45. Bg5+ {[%emt 0:00:20]} Kd7 {[%emt 0:00:25]} 46. Be3 {[%emt 0:00:00]} c5 {[%emt 0:00:00]} 47. f4 {[%emt 0:00:00]} Ke7 {[%emt 0:00:00]} 48. Kg6 {[%emt 0:00:00]} Bd4 {[%emt 0:00:00]} 49. Bc1 {[%emt 0:00:00]} Bf6 {[%emt 0:00:00]} 50. f5 {[%emt 0:01:01]} 1-0